Cogmind - Beta 14 @@@ ROGUE MODE // 2024.08.22 @ 23:50:00 Player: Olafz Result: Destroyed by H-61 Shepherd with Heavy Assault Cannon Performance ------------- Evolutions (2) 1000 Regions Visited (3) 600 Robots Destroyed (23) 115 Value Destroyed (716) 716 Prototype IDs (1) 20 Alien Tech Used (0) 0 Bonus (0) 0 TOTAL SCORE: 2451 Bonus ------- None Cogmind --------- Core Integrity 0/550 Matter 250/300 Energy 58/100 System Corruption 0% Temperature Cool (2) Movement Hovering (56) Location -8/Materials Parts ------- > --- POWER (1) -------- (None) > --- PROPULSION (2) --- Airjet Airjet > --- UTILITY (6) ------ Small Storage Unit Improved Signal Interpreter Improved Signal Interpreter Hacking Suite > --- WEAPON (2) ------- Heavy Hammer > --- INVENTORY (8) ---- Airjet Airjet Weight Redist. System ECM Suite Great Maul Great Maul Peak State ------------ > --- POWER ------------ (None) > --- PROPULSION ------- Airjet Airjet > --- UTILITY ---------- Small Storage Unit Improved Signal Interpreter Improved Signal Interpreter Hacking Suite > --- WEAPON ----------- Heavy Hammer > --- INVENTORY -------- Airjet Weight Redist. System ECM Suite Great Maul Great Maul [Rating: 19] Favorites ----------- Power Improved Ion Engine Engine Improved Ion Engine Propulsion Aluminum Leg Leg Aluminum Leg Hover Unit Airjet Flight Unit Flight Unit Utility Improved Signal Interpreter Storage Small Storage Unit Processor Improved Signal Interpreter Hackware Hacking Suite Weapon Heavy Hammer Energy Gun Medium Laser Ballistic Gun Heavy Assault Rifle Impact Weapon Heavy Hammer Build | -11 -10 -9 -8 ------- Run | Yrd Mat Mat Mat Slots Evolved 4 | . . 2 2 Power . | . . . . Propulsion . | . . . . Utility 4 | . . 2 2 Weapon . | . . . . Parts Attached 22 | 6 . 5 11 Power 3 | 1 . 1 1 Engine 3 | 1 . 1 1 Core . | . . . . Reactor . | . . . . Propulsion 7 | 2 . 1 4 Treads . | . . . . Leg 3 | 2 . 1 . Wheel . | . . . . Hover 2 | . . . 2 Flight 2 | . . . 2 Utility 5 | 1 . . 4 Device . | . . . . Storage 2 | 1 . . 1 Processor 2 | . . . 2 Hackware 1 | . . . 1 Protection . | . . . . Artifact . | . . . . Weapon 7 | 2 . 3 2 Energy Gun 2 | 2 . . . Energy Cannon . | . . . . Ballistic Gun 2 | . . 2 . Ballistic Cannon . | . . . . Launcher . | . . . . Special Weapon . | . . . . Impact Weapon 3 | . . 1 2 Slashing Weapon . | . . . . Piercing Weapon . | . . . . Special Melee Weapon . | . . . . Unidentified Prototypes 1 | . . . 1 Parts Lost 15 | . 5 4 6 Power 4 | . 1 1 2 Propulsion 5 | . 2 1 2 Utility . | . . . . Weapon 6 | . 2 2 2 Highest Loss Streak 5 | . 5 4 3 To Critical Strikes . | . . . . Average Slot Usage (%) 39 | . 69 29 38 Engine 3 | . 8 . 4 Leg 5 | . 22 3 . Flight 2 | . . . 5 Storage 6 | . 14 9 . Processor 5 | . . . 14 Energy Gun 4 | . 23 . . Ballistic Gun 5 | . . 12 . Impact Weapon 6 | . . 3 12 Peak Build Rating 19 | 6 6 6 19 Average Rating 6 | 3 5 4 10 On Entrance 2 | . 6 1 2 Naked Turns . | . . . . Heaviest Build 13 | 12 12 11 13 Greatest Support 20 | 20 20 10 16 Greatest Overweight (x) 4 | . 1 3 4 Average Overweight (x) . | . . 1 . Largest Inventory Capacity 8 | 8 8 8 8 Average Capacity 6 | 7 8 7 5 Most Carried 6 | 1 1 4 6 Average Carried 2 | . 1 1 3 Final Capacity 8 | 8 8 5 8 Final Carried 6 | 1 1 4 6 Class Distribution -------------------- 100% | Mutant Dominant Class ---------------- Mutant | -10/Materials Mutant | -9/Materials Mutant | -8/Materials Resources | -11 -10 -9 -8 ----------- Run | Yrd Mat Mat Mat Matter Collected 499 | 189 . 129 181 Remotely . | . . . . Salvage Created 874 | . 119 382 373 Parts 38 | . 7 15 16 Haulers Intercepted 2 | . . 1 1 Recyclers Shooed . | . . . . Parts Field Recycled . | . . . . Retrieved Matter . | . . . . Parts Self-Destructed . | . . . . Prevented . | . . . . Kills | -11 -10 -9 -8 ------- Run | Yrd Mat Mat Mat Combat Hostiles Destroyed 18 | . 4 7 7 Melee 5 | . . 1 4 Guns 8 | . 4 4 . Classes Destroyed 7 | . 2 4 1 Worker 1 | . . . 1 Hauler 2 | . . 1 1 Mechanic 1 | . . 1 . Watcher 1 | . . 1 . Swarmer 2 | . 2 . . Grunt 10 | . 2 6 2 Sentry 6 | . . 1 5 Best Kill Streak 4 | . 2 4 2 Combat Bots Only 2 | . 2 2 2 Max Kills in Single Turn 1 | . 1 1 1 Gunslinging . | . . . . Exploded . | . . . . Melee 1 | . . 1 1 Uniques/NPCs Destroyed . | . . . . Combat | -11 -10 -9 -8 -------- Run | Yrd Mat Mat Mat Hostile Shots Fired 230 | . 67 86 77 Missed 52 | . 11 23 18 Damage Taken 2376 | . 658 815 903 Core 1160 | . 243 355 562 Absorbed by Shields . | . . . . Core Remaining (%) 37 | 100 2 11 . Volleys Fired 36 | . 10 26 . Largest 2 | . 2 2 . Hottest 100 | . 100 46 . Shots Fired 70 | . 19 51 . Gun 70 | . 19 51 . Cannon . | . . . . Launcher . | . . . . Special . | . . . . Kinetic 51 | . . 51 . Thermal 19 | . 19 . . Explosive . | . . . . Electromagnetic . | . . . . Robot Hit Streak 7 | . 5 7 . Robot Miss Streak 4 | . 2 4 . Penetration Max . | . . . . Secondary Targets 2 | . 2 . . Max Gunslinging Chain 1 | . 1 . . Shots Hit Robots 88 | . 10 43 35 Core Hits 22 | . 8 11 3 Critical Kills 1 | . . . 1 Critical Parts Destroyed 9 | . . 4 5 Critical Strikes 11 | . 1 4 6 Burn 1 | . 1 . . Smash 10 | . . 4 6 Melee Attacks 56 | . . 16 40 Impact 56 | . . 16 40 Slashing . | . . . . Piercing . | . . . . Sneak Attacks 3 | . . 1 2 Combat Hostiles . | . . . . Follow-up Attacks 2 | . . . 2 Damage Inflicted 2475 | . 127 954 1394 Guns 622 | . 127 495 . Cannons . | . . . . Explosions . | . . . . Melee 1853 | . . 459 1394 Ramming . | . . . . Kinetic 495 | . . 495 . Thermal 127 | . 127 . . Explosive . | . . . . Electromagnetic . | . . . . Impact 1853 | . . 459 1394 Slashing . | . . . . Piercing . | . . . . Highest Corruption . | . . . . Average Corruption . | . . . . Corruption Purged . | . . . . Corruption Blocked . | . . . . Overload Shots . | . . . . Overflow Damage 621 | . . 274 347 Projectiles . | . . . . Explosions . | . . . . Melee 621 | . . 274 347 Knockbacks 1 | . . 1 . Impact 1 | . . 1 . Kinetic . | . . . . Secondary . | . . . . Self-Inflicted Damage . | . . . . Shots . | . . . . Rammed . | . . . . Targets Rammed . | . . . . Kicked . | . . . . Crushed . | . . . . Highest Temperature 261 | . 261 23 . Average Temperature 82 | . 118 7 . Received Heat Transfer 1089 | . 264 501 324 Siege Activations . | . . . . Robots Corrupted 7 | . . 3 4 Combat Hostiles 5 | . . 2 3 Parts Fried 12 | . . 9 3 Impact Corruptions 20 | . . 9 11 Robots Melted . | . . . . Combat Hostiles . | . . . . Parts Melted 2 | . 2 . . Heat Transferred 444 | . 444 . . Parts Sabotaged . | . . . . Parts Stolen . | . . . . Parts Stripped . | . . . . Power Chain Reactions . | . . . . Alert | -11 -10 -9 -8 ------- Run | Yrd Mat Mat Mat Peak Influence 314 | . 110 244 314 Initial 102 | . . 33 102 Average 126 | . 33 92 232 Maximum Alert Level 1 | . . 1 1 Low Security (%) 71 | 100 100 95 24 Level 1 28 | . . 4 75 Level 2 . | . . . . Level 3 . | . . . . Level 4 . | . . . . Level 5 . | . . . . High Security . | . . . . Max Security . | . . . . Squads Dispatched 4 | . 1 2 1 Investigation 1 | . . 1 . Extermination . | . . . . Reinforcement 3 | . 1 1 1 Assault . | . . . . Garrison . | . . . . Intercept . | . . . . Searches Triggered . | . . . . Construction Impeded . | . . . . Haulers Reinforced . | . . . . Active Scanning Responses . | . . . . Cargo Convoy Interrupts . | . . . . Stealth | -11 -10 -9 -8 --------- Run | Yrd Mat Mat Mat Distress Signals 2 | . 1 1 . Communications Jammed . | . . . . Distress Signals . | . . . . Times Spotted 32 | . 10 13 9 Peak Tracking Total 7 | . 7 4 5 Tactical Retreats 2 | . . 2 . Traps | -11 -10 -9 -8 ------- Run | Yrd Mat Mat Mat Traps Triggered 2 | . 1 1 . Indirectly . | . . . . Trap Hack Attempts . | . . . . Triggered . | . . . . Disarmed . | . . . . Reprogrammed . | . . . . Reused . | . . . . Traps Extracted . | . . . . Installed . | . . . . Triggered . | . . . . Machines | -11 -10 -9 -8 ---------- Run | Yrd Mat Mat Mat Machines Disabled . | . . . . Max in Single Turn . | . . . . Machines Repaired . | . . . . Machines Dismantled . | . . . . Machines Sabotaged . | . . . . Overloaded Fab Kills . | . . . . Hacking | -11 -10 -9 -8 --------- Run | Yrd Mat Mat Mat Machines Accessed 1 | . 1 . . Terminals 1 | . 1 . . Fabricators . | . . . . Repair Stations . | . . . . Recycling Units . | . . . . Scanalyzers . | . . . . Garrison Access . | . . . . Total Hacks 4 | . 4 . . Successful . | . . . . Failed 4 | . 4 . . Catastrophic . | . . . . Database Lockouts . | . . . . Manual 4 | . 4 . . Terminals 4 | . 4 . . Fabricators . | . . . . Repair Stations . | . . . . Recycling Units . | . . . . Scanalyzers . | . . . . Garrison Access . | . . . . Terminal Hacks . | . . . . Fabricator Hacks . | . . . . Repair Station Hacks . | . . . . Recycling Unit Hacks . | . . . . Scanalyzer . | . . . . Garrison Access Hacks . | . . . . Unauthorized Hacks . | . . . . Terminals . | . . . . Fabricators . | . . . . Repair Stations . | . . . . Recycling Units . | . . . . Scanalyzers . | . . . . Garrison Access . | . . . . Data Cores Recovered . | . . . . Used . | . . . . Hacking Detections . | . . . . Full Trace Events . | . . . . Feedback Events . | . . . . Feedback Blocked . | . . . . Robot Schematics Acquired . | . . . . Robots Built . | . . . . Authchips . | . . . . Time . | . . . . Total Robot Build Rating . | . . . . Part Schematics Acquired . | . . . . Parts Built . | . . . . Authchips . | . . . . Time . | . . . . Total Part Build Rating . | . . . . Parts Repaired . | . . . . Time . | . . . . Parts Recycled . | . . . . Recycled Matter . | . . . . Retrieved Matter . | . . . . Retrieved Components . | . . . . Parts Scanalyzed . | . . . . Part Schematics Acquired . | . . . . Parts Damaged . | . . . . Bothacking | -11 -10 -9 -8 ------------ Run | Yrd Mat Mat Mat Used RIF Installer . | . . . . Robots Hacked . | . . . . Non-combat . | . . . . Combat . | . . . . Robot Hacks Applied . | . . . . Relay Couplers Released . | . . . . Fabnet Peak Effective % . | . . . . Robots Rewired . | . . . . Allies Hacked . | . . . . Hacks Repelled . | . . . . Allies | -11 -10 -9 -8 -------- Run | Yrd Mat Mat Mat Total Allies . | . . . . Largest Group . | . . . . Highest-Rated Group . | . . . . Highest-Rated Ally . | . . . . Total Orders . | . . . . Ally Attacks . | . . . . Total Damage . | . . . . Kills . | . . . . Allies Corrupted . | . . . . Allies Melted . | . . . . Intel | -11 -10 -9 -8 ------- Run | Yrd Mat Mat Mat Robot Analysis Total . | . . . . Derelict Logs Recovered . | . . . . Drone Launches . | . . . . Drone Recoveries . | . . . . Exploration | -11 -10 -9 -8 ------------- Run | Yrd Mat Mat Mat Turns Passed 836 | 66 124 346 300 Spaces Moved 507 | 52 80 186 189 Core 311 | 8 17 157 129 Treads . | . . . . Legs 136 | 44 63 29 . Wheels . | . . . . Hover 22 | . . . 22 Flight 38 | . . . 38 Fastest Speed 37 | 50 100 50 37 Average Speed 104 | 109 115 114 89 Slowest Speed 280 | 120 120 200 280 Overloaded Moves . | . . . . Propulsion Burnouts . | . . . . Robots Hopped . | . . . . Cave-ins Triggered . | . . . . Exploration Rate (%) 21 | 4 28 24 29 Regions Visited 3 Branch Regions . Pre-discovered Areas . | . . . . Known Exits Taken . | . . . . Unknown Exits Taken 3 | 1 1 1 . Scrap Searched . | . . . . Spaces Dug 2 | . . 2 . Terrain Destroyed 2 | . . 2 . Melee 2 | . . 2 . Projectile . | . . . . AOE . | . . . . Terrain Rammed . | . . . . Walls Destroyed . | . . . . Machines Disabled . | . . . . Actions | -11 -10 -9 -8 --------- Run | Yrd Mat Mat Mat Total 642 | 58 92 243 249 Wait 15 | . 3 7 5 Move 504 | 51 79 185 189 Hop . | . . . . Pick Up 9 | 1 . 3 5 Fast Attach 19 | 6 . 4 9 Attach 4 | . . 1 3 Detach 1 | . . 1 . Swap . | . . . . Drop . | . . . . Fire 36 | . 10 26 . Melee 54 | . . 16 38 Ram . | . . . . Kick . | . . . . Crush . | . . . . Escape Stasis . | . . . . Rewire . | . . . . Trap . | . . . . Miscellaneous . | . . . . Route ------- -11/Scrapyard -10/Materials -9/Materials -8/Materials History --------- Turn | Location | Event 5 | -11/Scrapyard | Discovered new exit (range 16) 67 | -11/Scrapyard | Entered Materials 176 | -10/Materials | Core integrity fell below 50% 176 | -10/Materials | Discovered new exit (range 15) 183 | -10/Materials | Core integrity fell below 20% 191 | -10/Materials | Entered another Materials area 191 | -9/Materials | Evolved 2 slots: Utility x2 206 | -9/Materials | Lost 5 parts (1p2n2w) 307 | -9/Materials | Build established: Mutant 440 | -9/Materials | Core integrity fell below 50% 457 | -9/Materials | Lost 4 parts (1p1n2w) 464 | -9/Materials | Core integrity fell below 20% 533 | -9/Materials | Discovered new exit (range 4) 537 | -9/Materials | Entered another Materials area 537 | -8/Materials | Evolved 2 slots: Utility x2 712 | -8/Materials | Core integrity fell below 50% 743 | -8/Materials | Core integrity fell below 20% 745 | -8/Materials | Lost 3 parts (1p1n1w) 837 | -8/Materials | Destroyed by H-61 Shepherd with Heavy Assault Cannon Last Messages --------------- Acquired 10 matter. Acquired Great Maul. Acquired Weight Redist. System. K-01 Serf collects debris. Sneak attack on A-02 Transporter. K-01 Serf collects debris. T-07 Excavator is excavating. K-01 Serf cleans the Fusion Modulator. Destroyed Transport Network Coupler. A-02 Transporter system corrupted by crushing effect. A-02 Transporter system terminally corrupted. Ion Engine fried. K-01 Serf cleans the Fusion Modulator. Acquired Hacking Suite. Acquired Airjet. Acquired Prototype Engine. Identified Hvy. Ion Engine. Faulty integration triggers meltdown. Hacking Suite damaged (-2). Penetrated by Slug. Map ----- +----------------------------------------------------+ | ?????????????????????????????????????????????????? | | ?????????????????????????????????????????????????? | | ?????????????????????????????????????????????????? | | ?????????????????????????????????????????????????? | | ?????????????????????????????????????????????????? | | ???????????????????????????????????????#?????????? | | ???????????????????????########?####### ####?????# | | ???????????????????????# #?????# | | ???????????????????????# ? ? ####### | | ???????????????????????# ? | | ???????????????????????+ """ """ | | ???????????????????????# """ """ | | ???????????????????????# """ """ ???##### | | ???????????????????????# ???????# | | ???????????????????????# ########## | | ???????????????????????# """ """ # | | ???????????????????????# """ """ # | | ???????????????????????# """ """ # | | ????????????????????????# %% # | | ????????????????????????# + | | ????????????????????????# # | | ????????????????????????# # | | ????????????????????????# ######### ### | | ????????????????????????# #########+############ | | ????????????????????????# # #???????# | | ????????????????????????#@ # """ #???????# | | ????????????????????????+ + """ == #???????? | | ????????????????????????# % # """ =! #???????? | | ????????????????????????# # = #???????? | | ????????????????????????# #######+######???????? | | ????????????????????????# #????????????????????? | | ????????????????????????# #????????????????????? | | ????????????????????????# #????????????????????? | | ????????????????????????# ????????????????????? | | ????????????????????????# #????????????????????? | | ????????????????????????# #????????????????????? | | ????????????????????????# #????????????????????? | | ????????????????????????? #????????????????????? | | ????????????????????????? #????????????????????? | | ????????????????????????? ????????????????????? | | ????????????????????????? ?????????????????????? | | ??????????????????????????H??????????????????????? | | ?????????????????????????????????????????????????? | | ?????????????????????????????????????????????????? | | ?????????????????????????????????????????????????? | | ?????????????????????????????????????????????????? | | ?????????????????????????????????????????????????? | | | | | | | +----------------------------------------------------+ Best States ------------- Heat Dissipation 31 Energy Generation 12 Energy Capacity 265 Matter Stores 300 Matter Capacity 300 Sight Range 16 Terrain Scan Density 10 Evasion (%) 55 Offensive Hacking 10 Item Schematics ----------------- None Robot Schematics ------------------ None Fabricated ------------ Nothing Alien Tech Used ----------------- None Achievements -------------- None Challenges ------------ None Game ------ Seed SupercompositePointySpecial Manual? 0 Play Time 00:08:36 Cumulative 242.1 hours Start 2024.08.22 @ 23:35:54 End 2024.08.22 @ 23:50:00 Sessions 1 Manual Loads 0 Difficulty Rogue Special Mode None Game No. 427 Rogue 425 Adventurer 2 Explorer 0 Win Type - Total 10 Types 8/0/0/2/0/0/0/0/0 Lore% 73 Gallery% 68 Achievement% 56 Wizard Run 0 Options --------- Layout 0 ASCII 0 Keyboard 1 Movement Numpad Keybinds 1 Fullscreen 2 Font 18/SmallcapsGlow Map View 76x50 Zoom Use 0% Tactical HUD 1 Map Filters NONE Filters NONE Steam 1 RUN: 661d6192-e32d-4714-a65e-57283f3c1c53